bitfinex-derivatives/quotes_BNBF0:USTF0_20250608
["timestamp","ask_amount","ask_price","bid_price","bid_amount"]
[1749395171819,0.927,651.4,650.7,2.29550028]
[1749395172322,0.927,651.4,650.71,2.29550028]
[1749395178520,0.927,651.4,650.72,2.29550028]
[1749395179228,0.927,651.4,650.71,2.29550028]
[1749395179529,0.927,651.4,650.72,2.29550028]
[1749395180629,1.96808961,651.4,650.72,2.29550028]
[1749395180829,1.04108961,651.39,650.88,2.29550028]
[1749395181627,0.927,651.4,650.88,2.29550028]
[1749395182229,0.927,651.4,650.89,2.29550028]
[1749395183233,0.927,651.4,650.88,2.29550028]
[1749395183433,0.927,651.4,650.89,2.29550028]
[1749395186136,0.927,651.4,650.99,2.29550028]
[1749395186831,0.927,651.4,650.98,2.29550028]
[1749395189934,0.927,651.4,650.89,2.29550028]
[1749395191934,0.927,651.4,650.57,0.30742272]
[1749395194938,0.927,651.4,650.87,2.30121734]
[1749395200140,0.927,651.4,650.95,2.30121734]
[1749395200344,0.927,651.4,650.94,2.30121734]
[1749395200745,0.927,651.4,650.95,2.30121734]
[1749395201445,0.927,651.4,650.96,2.30121734]
[1749395201742,0.927,651.4,650.97,2.30121734]
[1749395203146,0.927,651.4,650.57,0.30742272]
[1749395203147,0.927,651.4,650.96,2.30121734]
[1749395203644,1.97383915,651.4,650.96,2.30121734]
[1749395203847,1.04683915,651.39,650.96,2.30121734]
[1749395204150,0.927,651.4,650.96,2.30121734]
[1749395204547,0.927,651.4,650.97,2.30121734]
[1749395207445,0.927,651.4,650.98,2.30121734]
[1749395207646,1.97383915,651.4,650.98,2.30121734]
[1749395207851,1.04683915,651.39,650.98,2.30121734]
[1749395208145,0.927,651.4,650.98,2.30121734]
[1749395208346,0.927,651.4,650.99,2.30121734]
[1749395209552,0.927,651.4,651.01,2.30121734]
[1749395209750,0.927,651.4,651.0,2.30121734]
[1749395210052,0.927,651.4,651.01,2.30121734]
[1749395211553,1.97383915,651.4,650.99,2.30121734]
[1749395211757,1.04683915,651.39,650.99,2.30121734]
[1749395212357,0.927,651.4,650.99,2.30121734]
[1749395213257,0.927,651.4,651.0,2.30121734]
[1749395214460,0.927,651.4,651.01,2.30121734]
[1749395214661,0.26725647,651.42,651.01,2.30121734]
[1749395217764,1.059,651.41,651.01,2.30121734]
[1749395218259,1.059,651.41,651.0,2.30121734]
[1749395219163,1.059,651.41,651.01,2.30121734]
[1749395220660,1.059,651.41,650.89,2.30121734]
[1749395221161,1.059,651.41,650.91,2.30121734]
[1749395221360,1.059,651.41,650.93,2.30121734]
[1749395221559,1.059,651.41,650.91,2.30121734]
[1749395221762,1.059,651.41,650.92,2.30121734]
[1749395221965,1.059,651.41,650.93,2.30121734]
[1749395222160,1.059,651.41,650.92,2.30121734]
[1749395222464,1.059,651.41,650.93,2.30121734]
[1749395223363,1.059,651.41,650.92,2.30121734]
[1749395223562,1.059,651.41,650.91,2.30121734]
[1749395224162,1.059,651.41,650.9,2.30121734]
[1749395224769,1.059,651.41,650.89,2.30121734]
[1749395226368,1.059,651.41,650.88,2.30121734]
[1749395226968,1.059,651.41,650.93,2.30121734]
[1749395229170,1.059,651.41,650.95,2.30121734]
[1749395229770,1.059,651.41,650.94,2.30121734]
[1749395230969,1.059,651.41,650.95,2.30121734]
[1749395231172,1.059,651.41,651.03,2.30121734]
[1749395232570,1.059,651.41,651.02,2.30121734]
[1749395233175,1.059,651.41,650.57,0.30742272]
[1749395233176,1.059,651.41,651.03,2.30121734]
[1749395233875,1.059,651.41,651.04,2.30121734]
[1749395234172,1.059,651.41,651.05,2.30121734]
[1749395234778,1.059,651.41,651.07,2.30121734]
[1749395235176,1.059,651.41,651.08,2.30121734]
[1749395235573,1.059,651.41,651.07,2.30121734]
[1749395235773,0.26725647,651.42,651.07,2.30121734]
[1749395236378,0.26725647,651.42,651.04,2.30121734]
[1749395236577,0.26725647,651.42,651.06,2.30121734]
[1749395236778,0.26725647,651.42,651.09,2.30121734]
[1749395238280,0.26725647,651.42,651.04,2.30121734]
[1749395238480,0.26725647,651.42,651.03,2.30121734]
[1749395238680,1.317,651.41,651.03,2.30121734]
[1749395241281,1.317,651.41,651.02,2.30121734]
[1749395241881,1.317,651.41,651.03,2.30121734]
[1749395242282,1.317,651.41,651.04,2.30121734]
[1749395242479,1.317,651.41,651.03,2.30121734]
[1749395242882,1.317,651.41,651.01,2.30121734]
[1749395244679,1.317,651.41,651.0,2.30121734]
[1749395245082,1.317,651.41,650.99,2.30121734]
[1749395246179,1.317,651.41,651.0,2.30121734]
[1749395247481,1.317,651.41,650.99,2.30121734]
[1749395248386,1.317,651.41,651.02,2.30121734]
[1749395249790,0.26718568,651.5,651.02,2.30121734]
[1749395251389,0.26718568,651.5,651.01,2.30121734]
[1749395251692,0.26718568,651.5,651.02,2.30121734]
[1749395251890,0.26718568,651.5,651.01,2.30121734]
[1749395252091,1.3,651.49,651.02,2.30121734]
[1749395252689,1.3,651.49,651.07,2.30121734]
[1749395253490,1.3,651.49,651.06,2.30121734]
[1749395253895,1.3,651.49,651.08,2.30121734]
[1749395254093,1.3,651.49,651.06,2.30121734]
[1749395254895,1.3,651.49,651.09,2.30121734]
[1749395255292,1.3,651.49,651.08,2.30121734]
[1749395256294,1.3,651.49,651.09,2.30121734]
[1749395258898,1.3,651.49,651.1,2.30121734]
[1749395259595,1.3,651.49,651.03,2.30121734]
[1749395261805,1.3,651.49,651.04,2.30121734]
[1749395264004,1.3,651.49,651.06,2.30121734]
[1749395264405,1.3,651.49,651.05,2.30121734]
[1749395264906,1.3,651.49,651.03,2.30121734]
[1749395266811,1.3,651.49,651.02,2.30121734]
[1749395267508,1.3,651.49,651.03,2.30121734]
[1749395268711,1.3,651.49,651.02,2.30121734]
[1749395269210,1.3,651.49,651.05,2.30121734]
[1749395269410,1.3,651.49,650.94,2.30121734]
[1749395269606,1.3,651.49,650.57,0.30742272]
[1749395269607,1.3,651.49,650.95,2.30121734]
[1749395269811,1.3,651.49,650.96,2.30121734]
[1749395270007,1.3,651.49,650.98,2.30121734]
[1749395270311,1.3,651.49,650.99,2.30121734]
[1749395271411,1.3,651.49,651.03,2.30121734]
[1749395271614,1.3,651.49,651.02,2.30121734]
[1749395273415,1.3,651.49,651.03,2.30121734]
[1749395275317,1.3,651.49,651.08,2.30121734]
[1749395275513,1.3,651.49,651.07,2.30121734]
[1749395276413,1.3,651.49,651.08,2.30121734]
[1749395276614,1.3,651.49,651.1,2.30121734]
[1749395276915,1.3,651.49,651.19,2.30121734]
[1749395277417,1.3,651.49,651.2,2.30121734]
[1749395278018,1.3,651.49,651.19,2.30121734]
[1749395278419,1.3,651.49,651.2,2.30121734]
[1749395279319,1.3,651.49,651.22,2.30121734]
[1749395279514,1.3,651.49,651.21,2.30121734]
[1749395279715,1.3,651.49,651.22,2.30121734]
[1749395280617,1.3,651.49,651.25,2.30121734]
[1749395283520,1.3,651.49,651.26,2.30121734]
[1749395284424,1.3,651.49,651.25,2.30121734]
[1749395286021,1.3,651.49,651.13,2.30121734]
[1749395286420,1.3,651.49,651.14,2.30121734]
[1749395288626,1.3,651.49,651.15,2.30121734]
[1749395289621,1.3,651.49,651.14,2.30121734]
[1749395291928,1.3,651.49,651.13,2.30121734]
[1749395293427,1.3,651.49,651.14,2.30121734]
[1749395293922,1.3,651.49,651.16,2.30121734]
[1749395297031,1.3,651.49,651.17,2.30121734]
[1749395300334,0.26715697,651.58,651.17,2.30121734]
[1749395300934,0.26715697,651.58,651.18,2.30121734]
[1749395301330,0.26715697,651.58,651.2,2.30121734]
[1749395302732,0.26715697,651.58,651.21,2.30121734]
[1749395303136,0.931,651.57,651.19,2.30121734]
[1749395303932,0.931,651.57,651.23,2.30121734]
[1749395304934,0.931,651.57,651.24,2.30121734]
[1749395306339,0.931,651.57,651.21,2.30121734]
[1749395306638,0.931,651.57,651.2,2.30121734]
[1749395306835,0.931,651.57,651.22,2.30121734]
[1749395311144,0.931,651.57,651.23,2.30121734]
[1749395313147,0.931,651.57,651.24,2.30121734]
[1749395313542,0.931,651.57,651.25,2.30121734]
[1749395316147,0.931,651.57,650.8,3.83536224]
[1749395316148,0.931,651.57,651.28,2.30121734]
[1749395316346,0.931,651.57,651.27,2.30121734]
[1749395316545,0.931,651.57,651.28,2.30121734]
[1749395319450,0.931,651.57,651.28,2.19436153]
[1749395321747,0.931,651.57,650.83,3.83536224]
[1749395321947,0.931,651.57,650.84,0.30729518]
[1749395335262,0.26715697,651.58,650.84,0.30729518]
[1749395337669,1.33,651.57,650.84,0.30729518]
[1749395339371,1.33,651.57,651.26,2.293673]
[1749395339668,1.33,651.57,650.84,0.30729518]
[1749395339669,1.33,651.57,651.17,2.293673]
[1749395340472,1.33,651.57,651.18,2.293673]
[1749395341372,1.33,651.57,651.17,2.293673]
[1749395342273,1.33,651.57,651.16,2.293673]
[1749395342874,1.33,651.57,651.18,2.293673]
[1749395343075,1.33,651.57,651.2,2.293673]
[1749395343276,1.33,651.57,651.19,2.293673]
[1749395343472,1.33,651.57,651.21,2.293673]
[1749395344275,1.33,651.57,651.2,2.293673]
[1749395345481,1.33,651.57,651.19,2.293673]
[1749395348182,1.33,651.57,651.18,2.293673]
[1749395348682,1.33,651.57,651.2,2.293673]
[1749395349287,1.33,651.57,651.19,2.293673]
[1749395349587,1.33,651.57,651.24,2.293673]
[1749395351483,1.33,651.57,651.23,2.293673]
[1749395351785,1.33,651.57,651.24,2.293673]
[1749395353088,1.33,651.57,651.33,2.293673]
[1749395353290,1.33,651.57,651.32,2.293673]
[1749395353486,1.33,651.57,651.33,2.293673]
[1749395353888,1.33,651.57,651.32,2.293673]
[1749395356486,1.33,651.57,651.31,2.293673]
[1749395357889,1.33,651.57,651.32,2.293673]
[1749395358190,1.33,651.57,651.31,2.293673]
[1749395358488,1.33,651.57,651.32,2.293673]
[1749395359593,1.33,651.57,651.33,2.293673]
[1749395360289,1.33,651.57,651.32,2.293673]
[1749395360593,1.33,651.57,651.33,2.293673]
[1749395360794,1.33,651.57,651.32,2.293673]
[1749395361194,1.33,651.57,651.35,2.293673]
[1749395362198,1.33,651.57,651.34,2.293673]
[1749395362893,1.33,651.57,651.35,2.293673]
[1749395363095,1.33,651.57,651.37,2.293673]
[1749395365700,1.33,651.57,651.36,2.293673]
[1749395368401,1.33,651.57,651.34,2.293673]
[1749395369102,1.33,651.57,651.31,2.293673]
[1749395369301,1.33,651.57,651.32,2.293673]
[1749395372704,0.26714979,651.72,651.32,2.293673]
[1749395373502,0.26714979,651.72,651.33,2.293673]
[1749395375007,0.26714979,651.72,651.34,2.293673]
[1749395375504,1.181,651.71,651.34,2.293673]
[1749395378309,1.181,651.71,651.36,2.293673]
[1749395378809,1.181,651.71,651.35,2.293673]
[1749395379006,1.181,651.71,651.37,2.293673]
[1749395379409,1.181,651.71,651.26,2.293673]
[1749395379705,1.181,651.71,651.25,2.293673]
[1749395380610,1.181,651.71,651.26,2.293673]
[1749395381006,1.181,651.71,651.25,2.293673]
[1749395382507,1.181,651.71,651.26,2.293673]
[1749395382707,1.181,651.71,651.25,2.293673]
[1749395383311,1.181,651.71,651.27,2.293673]
[1749395387516,1.181,651.71,651.28,2.293673]
[1749395389120,1.181,651.71,651.27,2.293673]
[1749395389318,1.181,651.71,651.35,2.293673]
[1749395389521,0.26714979,651.72,651.38,2.293673]
[1749395389720,0.26714979,651.72,651.35,2.293673]
[1749395390813,0.26714979,651.72,651.36,2.293673]
[1749395391419,0.26714979,651.72,651.37,2.293673]
[1749395392415,0.996,651.71,651.38,2.293673]
[1749395392820,0.996,651.71,650.84,0.30729518]
[1749395392821,0.996,651.71,651.39,2.293673]
[1749395394418,0.996,651.71,651.41,2.293673]
[1749395394721,0.996,651.71,651.43,2.293673]
[1749395395418,0.996,651.71,651.45,2.293673]
[1749395396422,0.996,651.71,651.46,2.293673]
[1749395396623,0.996,651.71,651.45,2.293673]
[1749395396824,0.996,651.71,651.46,2.293673]
[1749395398423,0.996,651.71,651.47,2.293673]
[1749395399320,0.996,651.71,651.48,2.293673]
[1749395399524,0.996,651.71,651.5,2.293673]
[1749395399927,0.996,651.71,651.49,2.293673]
[1749395401322,0.996,651.71,650.84,0.32080038]
[1749395401323,0.996,651.71,651.5,2.293673]
[1749395401522,0.996,651.71,651.46,2.293673]
[1749395401722,0.996,651.71,650.84,5.67680232]
[1749395401723,0.996,651.71,651.45,2.293673]
[1749395403527,0.996,651.71,651.44,2.293673]
[1749395404527,0.996,651.71,651.48,2.293673]
[1749395404726,0.996,651.71,651.49,2.293673]
[1749395405127,0.996,651.71,651.5,2.293673]
[1749395406130,0.996,651.71,651.48,2.293673]
[1749395406529,0.996,651.71,651.47,2.293673]
[1749395408426,0.996,651.71,651.46,2.293673]
[1749395409829,0.996,651.71,651.45,2.293673]
[1749395410033,0.996,651.71,651.44,2.293673]
[1749395411330,0.996,651.71,651.46,2.293673]
[1749395412333,0.26702884,651.89,651.46,2.293673]
[1749395412529,0.26702884,651.89,651.45,2.293673]
[1749395413530,0.26702884,651.89,651.46,2.293673]
[1749395414433,0.26702884,651.89,651.49,2.293673]
[1749395414633,0.26702884,651.89,651.5,2.293673]
[1749395414834,1.313,651.88,651.5,2.293673]
[1749395416029,1.313,651.88,651.52,2.293673]
[1749395417130,1.313,651.88,651.53,2.293673]
[1749395417338,1.313,651.88,651.52,2.293673]
[1749395417632,1.313,651.88,651.54,2.293673]
[1749395418933,1.313,651.88,651.53,2.293673]
[1749395419338,1.313,651.88,651.49,2.293673]
[1749395419641,1.313,651.88,651.51,2.293673]
[1749395420934,1.313,651.88,651.47,2.293673]
[1749395421139,1.313,651.88,651.04,3.83536224]
[1749395421140,1.313,651.88,651.48,2.293673]
[1749395421534,1.313,651.88,651.47,2.293673]
[1749395422140,1.313,651.88,651.44,2.293673]
[1749395429044,1.313,651.88,651.42,2.293673]
[1749395429239,1.313,651.88,650.86,3.83536224]
[1749395429240,1.313,651.88,651.43,2.293673]
[1749395430947,1.313,651.88,651.46,2.293673]
[1749395431547,1.313,651.88,651.39,2.293673]
[1749395432350,1.313,651.88,651.4,2.293673]
[1749395433546,1.313,651.88,651.39,2.293673]
[1749395434151,1.313,651.88,651.38,2.293673]
[1749395434445,1.313,651.88,651.38,2.60071343]
[1749395434649,1.313,651.88,651.38,0.30704043]
[1749395436249,1.313,651.88,651.38,2.60071343]
[1749395436448,1.313,651.88,651.39,2.293673]
[1749395437152,1.313,651.88,651.41,2.293673]
[1749395438049,1.313,651.88,651.4,2.293673]
[1749395438253,1.313,651.88,651.41,2.293673]
[1749395438553,1.313,651.88,651.4,2.293673]
[1749395438850,1.313,651.88,651.44,2.293673]
[1749395439148,1.313,651.88,651.46,2.293673]
[1749395439350,1.313,651.88,651.46,2.24027604]
[1749395440650,1.313,651.88,651.38,0.30704043]
[1749395458866,0.2669807,652.02,651.38,0.30704043]
[1749395461662,0.897,652.01,651.38,0.30704043]
[1749395463465,0.897,652.01,651.38,2.59534834]
[1749395465264,0.897,652.01,651.39,2.28830791]
[1749395465464,0.897,652.01,651.4,2.28830791]
[1749395467265,0.897,652.01,651.39,2.28830791]
[1749395467770,0.897,652.01,651.41,2.28830791]
[1749395469171,0.897,652.01,651.42,2.28830791]
[1749395469372,0.897,652.01,651.42,2.18150744]
[1749395470470,0.897,652.01,651.38,0.30704043]
[1749395479782,0.2669807,652.02,651.38,0.30704043]
[1749395483682,1.377,652.01,651.38,0.30704043]
[1749395489386,1.377,652.01,651.59,2.29043483]
[1749395491287,1.377,652.01,651.61,2.29043483]
[1749395491985,1.377,652.01,651.62,2.29043483]
[1749395495891,1.377,652.01,651.58,2.29043483]
[1749395498295,1.377,652.01,651.59,2.29043483]
[1749395499298,1.377,652.01,651.59,2.02344594]
[1749395499800,1.377,652.01,651.38,0.30704043]
[1749395515713,0.2669807,652.02,651.38,0.30704043]
[1749395518617,1.289,652.01,651.38,0.30704043]
[1749395529315,1.289,652.01,651.38,0.09346078]
[1749395530314,1.289,652.01,651.42,2.28973533]
[1749395531221,1.289,652.01,651.44,2.28973533]
[1749395531722,1.289,652.01,651.39,2.28973533]
[1749395531918,1.289,652.01,651.38,0.09346078]
[1749395534226,1.289,652.01,651.38,2.38319611]
[1749395535027,1.289,652.01,651.38,0.09346078]
[1749395541633,1.289,652.01,651.39,2.28973533]
[1749395541834,1.289,652.01,651.44,2.28973533]
[1749395542132,1.289,652.01,651.43,2.28973533]
[1749395542534,1.289,652.01,651.44,2.28973533]
[1749395543137,1.289,652.01,651.43,2.28973533]
[1749395543335,1.289,652.01,651.44,2.28973533]
[1749395545534,1.289,652.01,651.48,2.28973533]
[1749395546140,1.289,652.01,651.49,2.28973533]
[1749395547136,1.289,652.01,651.5,2.28973533]
[1749395547642,1.289,652.01,651.58,2.28973533]
[1749395548539,1.289,652.01,651.59,2.28973533]
[1749395550444,1.289,652.01,651.6,2.28973533]
[1749395552039,1.289,652.01,651.61,2.28973533]
[1749395553244,1.289,652.01,651.64,2.28973533]
[1749395553743,0.2669807,652.02,651.64,2.28973533]
[1749395554844,0.2669807,652.02,651.66,2.28973533]
[1749395555340,0.2669807,652.02,651.68,2.28973533]
[1749395556041,0.2669807,652.02,651.7,2.28973533]
[1749395556545,1.357,652.01,651.7,2.28973533]
[1749395558047,1.357,652.01,651.71,2.28973533]
[1749395558344,1.357,652.01,651.73,2.28973533]
[1749395558547,1.357,652.01,651.74,2.28973533]
[1749395559343,1.357,652.01,651.74,2.02279047]
[1749395560749,1.357,652.01,651.38,0.09346078]
[1749395579469,1.357,652.01,651.69,2.29263267]
[1749395579769,1.357,652.01,651.68,2.29263267]
[1749395580769,1.357,652.01,651.67,2.29263267]
[1749395581270,1.357,652.01,651.66,2.29263267]
[1749395583972,1.357,652.01,651.64,2.29263267]
[1749395585571,1.357,652.01,651.69,2.29263267]
[1749395587174,1.357,652.01,651.68,2.29263267]
[1749395587971,1.357,652.01,651.69,2.29263267]
[1749395588772,1.357,652.01,651.68,2.29263267]
[1749395589271,1.357,652.01,651.68,2.02569805]
[1749395589570,1.357,652.01,651.38,0.09346078]
[1749395608594,0.2669807,652.02,651.38,0.09346078]
[1749395609492,0.2669807,652.02,651.76,2.29378171]
[1749395611692,1.17,652.01,651.76,2.29378171]
[1749395612090,1.17,652.01,651.77,2.29378171]
[1749395612994,1.17,652.01,651.78,2.29378171]
[1749395613796,1.17,652.01,651.61,2.29378171]
[1749395616399,1.17,652.01,651.62,2.29378171]
[1749395618196,1.17,652.01,651.61,2.29378171]
[1749395619196,1.17,652.01,651.38,0.09346078]
[1749395619401,1.17,652.01,651.35,2.12026384]
[1749395619901,1.17,652.01,650.57,3.83536224]
[1749395620100,1.17,652.01,650.59,4.14277551]
[1749395620296,1.17,652.01,650.61,0.30740382]
[1749395622298,1.17,652.01,650.77,0.26708418]
[1749395622498,1.17,652.01,650.79,0.30731879]
[1749395624697,1.17,652.01,650.88,3.83536224]
[1749395624897,1.17,652.01,650.9,0.30726686]
[1749395625604,1.17,652.01,650.93,3.83536224]
[1749395625903,1.17,652.01,650.95,0.30724325]
[1749395626801,1.17,652.01,651.04,3.83536224]
[1749395627000,1.17,652.01,651.05,0.30719606]
[1749395628701,1.17,652.01,651.06,3.83536224]
[1749395628906,1.17,652.01,651.07,0.30718663]
[1749395629105,1.17,652.01,651.11,3.83536224]
[1749395629308,1.17,652.01,651.12,0.30716304]
[1749395632804,0.2669807,652.02,651.12,0.30716304]
[1749395634603,1.0468264,652.45,651.12,0.30716304]
[1749395634909,0.26700631,651.95,651.12,0.30716304]
[1749395635109,1.0468264,652.43,651.12,0.30716304]
[1749395635409,0.26700836,651.95,651.12,0.30716304]
[1749395635605,3.39886734,652.41,651.12,0.30716304]
[1749395635805,2.70418257,652.4,651.12,0.30716304]
[1749395636006,0.2670104,651.95,651.12,0.30716304]
[1749395636206,3.9323105,652.38,651.12,0.30716304]
[1749395636510,0.26701348,651.95,651.12,0.30716304]
[1749395636806,3.93291949,652.36,651.12,0.30716304]
[1749395637006,0.26701553,651.95,651.12,0.30716304]
[1749395637308,1.0468264,652.34,651.12,0.30716304]
[1749395637506,0.26701757,651.95,651.12,0.30716304]
[1749395637912,1.0468264,652.31,651.12,0.30716304]
[1749395638111,0.26701962,651.95,651.12,0.30716304]
[1749395638308,1.0468264,652.29,651.12,0.30716304]
[1749395638512,1.502,652.42,651.12,0.30716304]
[1749395638513,0.2670227,651.95,651.12,0.30716304]
[1749395639409,0.2670227,651.95,651.12,2.59720176]
[1749395640412,0.2670227,651.95,651.21,2.29003872]
[1749395640713,0.2670227,651.95,651.22,0.30711587]
[1749395642009,0.2670227,651.95,651.28,2.29003872]
[1749395642816,0.2670227,651.95,651.29,2.29003872]
[1749395644210,0.2670227,651.95,651.32,2.29003872]
[1749395645814,0.2670227,651.95,651.31,2.29003872]
[1749395646314,0.2670227,651.95,651.34,2.29003872]
[1749395646518,0.2670227,651.95,651.35,2.29003872]
[1749395648713,0.2670227,651.95,651.22,0.30711587]
[1749395648714,0.2670227,651.95,651.51,2.29003872]
[1749395649314,0.2670227,651.95,651.51,2.02309181]
[1749395649715,0.2670227,651.95,651.22,0.30711587]
[1749395669138,0.2670227,651.95,651.25,3.83536224]
[1749395669437,0.2670227,651.95,651.67,2.29124798]
[1749395670233,0.2670227,651.95,651.68,2.29124798]
[1749395670638,0.2670227,651.95,651.6,2.29124798]
[1749395671437,0.2670227,651.95,651.59,2.29124798]
[1749395672238,0.2670227,651.95,651.6,2.29124798]
[1749395674939,0.2670227,651.95,651.61,2.29124798]
[1749395675141,0.2670227,651.95,651.6,2.29124798]
[1749395675444,0.2670227,651.95,651.61,2.29124798]
[1749395676346,0.2670227,651.95,651.6,2.29124798]
[1749395676540,0.2670227,651.95,651.61,2.29124798]
[1749395676846,0.2670227,651.95,651.59,2.29124798]
[1749395677242,0.2670227,651.95,651.6,2.29124798]
[1749395678143,0.2670227,651.95,651.25,0.30710172]
[1749395679347,0.2670227,651.95,651.25,0.04010156]
[1749395680645,0.2670227,651.95,651.53,2.29124798]
[1749395680945,0.2670227,651.95,651.5,2.29124798]
[1749395681344,0.2670227,651.95,651.49,2.29124798]
[1749395681647,0.2670227,651.95,651.48,2.29124798]
[1749395684447,0.2670227,651.95,651.47,2.29124798]
[1749395684951,0.2670227,651.95,651.44,2.29124798]
[1749395686050,0.2670227,651.95,651.39,2.29124798]
[1749395686253,0.2670227,651.95,651.38,2.29124798]
[1749395686854,0.2670227,651.95,651.39,2.29124798]
[1749395687050,0.2670227,651.95,651.25,0.04010156]
[1749395687051,0.2670227,651.95,651.4,2.29124798]
[1749395688653,0.2670227,651.95,651.39,2.29124798]
[1749395688855,1.228,651.94,651.39,2.29124798]
[1749395689851,1.228,651.94,651.38,2.29124798]
[1749395690455,1.228,651.94,651.39,2.29124798]
[1749395690653,1.228,651.94,651.41,2.29124798]
[1749395694656,1.228,651.94,651.39,2.29124798]
[1749395694857,1.228,651.94,651.4,2.29124798]
[1749395695456,1.228,651.94,651.25,0.04010156]
[1749395699265,1.05366116,651.93,651.25,0.04010156]
[1749395699564,2.28166116,651.94,651.25,0.04010156]
[1749395699964,1.05366116,651.93,651.25,0.04010156]
[1749395700164,1.228,651.94,651.25,0.04010156]
[1749395702966,0.2670729,651.77,651.25,0.04010156]
[1749395703266,0.2670729,651.77,651.27,2.29124798]
[1749395704470,0.2670729,651.77,651.3,2.29124798]
[1749395705766,0.2670729,651.77,651.36,2.29124798]
[1749395707373,0.2670729,651.77,651.32,2.29124798]
[1749395708170,0.2670729,651.77,651.34,2.29124798]
[1749395708370,0.2670729,651.77,651.32,2.29124798]
[1749395709169,0.2670729,651.77,651.31,2.29124798]
[1749395709369,0.2670729,651.77,651.31,2.02421196]
[1749395709571,0.2670729,651.77,651.25,0.04010156]
[1749395717978,0.2670729,651.77,651.0,0.26712416]
[1749395729488,0.2670729,651.77,651.14,2.28512286]
[1749395729785,0.2670729,651.77,651.13,2.28512286]
[1749395730187,0.2670729,651.77,651.14,2.28512286]
[1749395730985,0.2670729,651.77,651.2,2.28512286]
[1749395731187,0.2670729,651.77,651.23,2.28512286]
[1749395731586,0.2670729,651.77,651.26,2.28512286]
[1749395731790,0.2670729,651.77,651.27,2.28512286]
[1749395732188,0.2670729,651.77,651.28,2.28512286]
[1749395732691,0.2670729,651.77,651.3,2.28512286]
[1749395733191,0.2670729,651.77,651.31,2.28512286]
[1749395733585,0.2670729,651.77,651.3,2.28512286]
[1749395734393,0.2670729,651.77,651.31,2.28512286]
[1749395734786,0.2670729,651.77,651.32,2.28512286]
[1749395735788,0.2670729,651.77,651.28,2.28512286]
[1749395737192,0.2670729,651.77,651.29,2.28512286]
[1749395737790,0.2670729,651.77,651.28,2.28512286]
[1749395738392,0.2670729,651.77,651.27,2.28512286]
[1749395739198,0.2670729,651.77,651.26,2.28512286]
[1749395739393,0.2670729,651.77,651.27,2.28512286]
[1749395739593,0.2670729,651.77,651.26,2.28512286]
[1749395740097,0.2670729,651.77,651.23,2.28512286]
[1749395740597,0.2670729,651.77,651.24,2.28512286]
[1749395740797,0.2670729,651.77,651.22,2.28512286]
[1749395741499,0.2670729,651.77,651.21,2.28512286]
[1749395743396,1.395,651.76,651.21,2.28512286]
[1749395744496,1.395,651.76,651.22,2.28512286]
[1749395745602,1.395,651.76,651.23,2.28512286]
[1749395746203,1.395,651.76,651.19,2.28512286]
[1749395748303,1.395,651.76,651.2,2.28512286]
[1749395748806,1.395,651.76,651.21,2.28512286]
[1749395750108,1.395,651.76,651.23,2.28512286]
[1749395750708,1.395,651.76,651.24,2.28512286]
[1749395751207,1.395,651.76,651.25,2.28512286]
[1749395751406,1.395,651.76,651.26,2.28512286]
[1749395753411,1.395,651.76,651.27,2.28512286]
[1749395754512,1.395,651.76,651.28,2.28512286]
[1749395755315,1.395,651.76,651.29,2.28512286]
[1749395756117,1.395,651.76,651.38,2.28512286]
[1749395756317,1.395,651.76,651.37,2.28512286]
[1749395758116,1.395,651.76,651.38,2.28512286]
[1749395759620,1.395,651.76,651.36,2.28512286]
[1749395760316,1.395,651.76,651.38,2.28512286]
[1749395760717,1.395,651.76,651.39,2.28512286]
[1749395761117,1.395,651.76,651.33,2.28512286]